[Event "Titled Tuesday Blitz December 27 Early 2022"]
[White "Tarnowska, Aleksandra"]
[Black "Poeta, Caio Medeiros"]
[WhiteFideId "1180967"]
[BlackFideId "2142660"]
[WhiteElo "1835"]
[BlackElo "2088"]
[Result "0-1"]
[Round "04"]
[TimeControl "180+2"]
[Date "2022.12.27"]
[WhiteClock "0:00:01"]
[BlackClock "0:00:20"]

1. e4 {[%clk 0:03:00]}  c6 {[%clk 0:02:59]} 2. d4 {[%clk 0:02:58]}  d5 {[%clk 0:03:00]} 3. Nc3 {[%clk 0:02:58]}  dxe4 {[%clk 0:03:00]} 4. Nxe4 {[%clk 0:02:58]}  Bf5 {[%clk 0:03:00]} 5. Ng3 {[%clk 0:02:58]}  Bg6 {[%clk 0:03:01]} 6. h4 {[%clk 0:02:59]}  h6 {[%clk 0:03:01]} 7. h5 {[%clk 0:02:59]}  Bh7 {[%clk 0:03:01]} 8. Nf3 {[%clk 0:03:00]}  Nd7 {[%clk 0:03:01]} 9. Bd3 {[%clk 0:03:00]}  Bxd3 {[%clk 0:03:00]} 10. Qxd3 {[%clk 0:03:01]}  e6 {[%clk 0:03:01]} 11. Bf4 {[%clk 0:02:55]}  Qa5+ {[%clk 0:02:59]} 12. Qd2 {[%clk 0:02:12]}  Bb4 {[%clk 0:02:55]} 13. c3 {[%clk 0:02:11]}  Be7 {[%clk 0:02:55]} 14. O-O {[%clk 0:02:02]}  Ngf6 {[%clk 0:02:54]} 15. Ne5 {[%clk 0:01:58]}  Nxe5 {[%clk 0:02:48]} 16. Bxe5 {[%clk 0:01:49]}  O-O {[%clk 0:02:47]} 17. Qf4 {[%clk 0:01:25]}  Nd5 {[%clk 0:02:22]} 18. Qg4 {[%clk 0:01:22]}  Bf6 {[%clk 0:02:21]} 19. Rfe1 {[%clk 0:01:12]}  Qd8 {[%clk 0:02:18]} 20. Bxf6 {[%clk 0:00:56]}  Nxf6 {[%clk 0:02:17]} 21. Qf3 {[%clk 0:00:56]}  Qd5 {[%clk 0:02:12]} 22. Re3 {[%clk 0:00:23]}  a5 {[%clk 0:02:08]} 23. a3 {[%clk 0:00:22]}  Rfd8 {[%clk 0:01:50]} 24. Rae1 {[%clk 0:00:21]}  Qb3 {[%clk 0:01:48]} 25. R3e2 {[%clk 0:00:16]}  Rd5 {[%clk 0:01:46]} 26. Ne4 {[%clk 0:00:15]}  Nxe4 {[%clk 0:01:40]} 27. Rxe4 {[%clk 0:00:10]}  Qxb2 {[%clk 0:01:40]} 28. Rf4 {[%clk 0:00:09]}  Rf8 {[%clk 0:01:30]} 29. Rxe6 {[%clk 0:00:08]}  Qc1+ {[%clk 0:01:19]} 30. Kh2 {[%clk 0:00:08]}  Qxf4+ {[%clk 0:01:04]} 31. Qxf4 {[%clk 0:00:06]}  fxe6 {[%clk 0:01:05]} 32. Qe3 {[%clk 0:00:04]}  Rxh5+ {[%clk 0:00:41]} 33. Kg1 {[%clk 0:00:04]}  Rf6 {[%clk 0:00:41]} 34. g3 {[%clk 0:00:03]}  Rhf5 {[%clk 0:00:41]} 35. f4 {[%clk 0:00:02]}  Rb5 {[%clk 0:00:41]} 36. Kg2 {[%clk 0:00:02]}  Rb3 {[%clk 0:00:37]} 37. Kh3 {[%clk 0:00:03]}  Rxa3 {[%clk 0:00:35]} 38. Qd3 {[%clk 0:00:01]}  Rb3 {[%clk 0:00:31]} 39. g4 {[%clk 0:00:02]}  a4 {[%clk 0:00:31]} 40. Kg3 {[%clk 0:00:02]}  a3 {[%clk 0:00:30]} 41. Qc4 {[%clk 0:00:02]}  a2 {[%clk 0:00:22]} 42. Qxb3 {[%clk 0:00:02]}  a1=Q {[%clk 0:00:22]} 43. Qxb7 {[%clk 0:00:02]}  Qxc3+ {[%clk 0:00:22]} 44. Kh4 {[%clk 0:00:01]}  Qe1+ {[%clk 0:00:21]} 45. Kh3 {[%clk 0:00:01]}  Qf1+ {[%clk 0:00:21]} 46. Kg3 {[%clk 0:00:01]}  Qxf4+ {[%clk 0:00:20]} 47. Kh4 {[%clk 0:00:01]}  Qh2# {[%clk 0:00:20]} 0-1


[Site "https://www.chess.com"]

[Event "Titled Tuesday Blitz December 27 Early 2022"]
[White "Tharushi, T H D Niklesha"]
[Black "Viskelis, Darius"]
[WhiteFideId "9918264"]
[BlackFideId "12800830"]
[WhiteElo "1570"]
[BlackElo "2166"]
[Result "1-0"]
[Round "04"]
[TimeControl "180+2"]
[Date "2022.12.27"]
[WhiteClock "0:00:58"]
[BlackClock "0:00:07"]

1. e4 {[%clk 0:03:00]}  c5 {[%clk 0:02:29]} 2. Nf3 {[%clk 0:02:59]}  g6 {[%clk 0:02:28]} 3. d4 {[%clk 0:02:59]}  cxd4 {[%clk 0:02:29]} 4. Nxd4 {[%clk 0:02:59]}  Bg7 {[%clk 0:02:30]} 5. Nc3 {[%clk 0:02:59]}  Nc6 {[%clk 0:02:30]} 6. Be3 {[%clk 0:02:59]}  Nf6 {[%clk 0:02:30]} 7. Qd2 {[%clk 0:02:59]}  O-O {[%clk 0:02:29]} 8. f3 {[%clk 0:02:59]}  d5 {[%clk 0:02:29]} 9. O-O-O {[%clk 0:02:43]}  e5 {[%clk 0:02:21]} 10. Nxc6 {[%clk 0:02:39]}  bxc6 {[%clk 0:02:22]} 11. exd5 {[%clk 0:02:39]}  cxd5 {[%clk 0:02:22]} 12. Nxd5 {[%clk 0:02:27]}  Nxd5 {[%clk 0:01:39]} 13. Qxd5 {[%clk 0:02:28]}  Qxd5 {[%clk 0:01:32]} 14. Rxd5 {[%clk 0:02:29]}  Be6 {[%clk 0:01:32]} 15. Rc5 {[%clk 0:02:20]}  a5 {[%clk 0:01:28]} 16. Bc4 {[%clk 0:02:20]}  Bf5 {[%clk 0:01:16]} 17. g4 {[%clk 0:02:16]}  Bc8 {[%clk 0:01:15]} 18. Rd1 {[%clk 0:02:15]}  e4 {[%clk 0:01:16]} 19. Bd5 {[%clk 0:02:12]}  Rb8 {[%clk 0:01:11]} 20. c3 {[%clk 0:01:53]}  exf3 {[%clk 0:01:08]} 21. Bxf3 {[%clk 0:01:54]}  a4 {[%clk 0:01:09]} 22. Bf4 {[%clk 0:01:52]}  Rb6 {[%clk 0:01:00]} 23. g5 {[%clk 0:01:47]}  a3 {[%clk 0:00:59]} 24. b3 {[%clk 0:01:45]}  Bf5 {[%clk 0:00:57]} 25. h4 {[%clk 0:01:43]}  Re8 {[%clk 0:00:41]} 26. c4 {[%clk 0:01:40]}  Bc3 {[%clk 0:00:19]} 27. Rc6 {[%clk 0:01:27]}  Rxb3 {[%clk 0:00:17]} 28. axb3 {[%clk 0:01:06]}  a2 {[%clk 0:00:17]} 29. Ra6 {[%clk 0:01:06]}  a1=Q+ {[%clk 0:00:09]} 30. Rxa1 {[%clk 0:01:07]}  Bxa1 {[%clk 0:00:10]} 31. Bc6 {[%clk 0:01:06]}  Rc8 {[%clk 0:00:08]} 32. Bd7 {[%clk 0:01:07]}  Rd8 {[%clk 0:00:06]} 33. Bxf5 {[%clk 0:01:04]}  Rxd1+ {[%clk 0:00:03]} 34. Kxd1 {[%clk 0:01:05]}  gxf5 {[%clk 0:00:03]} 35. c5 {[%clk 0:01:05]}  Kf8 {[%clk 0:00:03]} 36. c6 {[%clk 0:01:05]}  Ke7 {[%clk 0:00:03]} 37. c7 {[%clk 0:01:05]}  Kd7 {[%clk 0:00:03]} 38. b4 {[%clk 0:01:05]}  Bd4 {[%clk 0:00:01]} 39. Kc2 {[%clk 0:00:59]}  Bb6 {[%clk 0:00:01]} 40. Kd3 {[%clk 0:01:00]}  Bxc7 {[%clk 0:00:02]} 41. Bxc7 {[%clk 0:00:59]}  Kxc7 {[%clk 0:00:03]} 42. Kd4 {[%clk 0:00:59]}  Kd6 {[%clk 0:00:03]} 43. b5 {[%clk 0:00:59]}  f4 {[%clk 0:00:02]} 44. Ke4 {[%clk 0:00:59]}  Kc5 {[%clk 0:00:03]} 45. Kxf4 {[%clk 0:01:00]}  Kxb5 {[%clk 0:00:03]} 46. Kf5 {[%clk 0:01:00]}  Kc6 {[%clk 0:00:04]} 47. Kf6 {[%clk 0:01:01]}  Kd5 {[%clk 0:00:04]} 48. Kxf7 {[%clk 0:01:01]}  Ke5 {[%clk 0:00:05]} 49. Kg7 {[%clk 0:01:02]}  Kf5 {[%clk 0:00:05]} 50. Kxh7 {[%clk 0:01:02]}  Kg4 {[%clk 0:00:06]} 51. g6 {[%clk 0:01:03]}  Kxh4 {[%clk 0:00:05]} 52. g7 {[%clk 0:01:04]}  Kh5 {[%clk 0:00:06]} 53. g8=Q {[%clk 0:01:04]}  Kh4 {[%clk 0:00:06]} 54. Kh6 {[%clk 0:01:04]}  Kh3 {[%clk 0:00:06]} 55. Kh5 {[%clk 0:01:05]}  Kh2 {[%clk 0:00:07]} 56. Kh4 {[%clk 0:01:05]}  Kh1 {[%clk 0:00:08]} 57. Qg4 {[%clk 0:01:00]}  Kh2 {[%clk 0:00:07]} 58. Qe2+ {[%clk 0:01:00]}  Kh1 {[%clk 0:00:07]} 59. Kh3 {[%clk 0:00:58]} 1-0


[Site "https://www.chess.com"]

[Event "Titled Tuesday Blitz December 27 Early 2022"]
[White "Timofeev, Artyom"]
[Black "Williams, Simon K"]
[WhiteFideId "4140419"]
[BlackFideId "404454"]
[WhiteElo "2567"]
[BlackElo "2465"]
[Result "1-0"]
[Round "04"]
[TimeControl "180+2"]
[Date "2022.12.27"]
[WhiteClock "0:01:55"]
[BlackClock "0:00:07"]

1. d4 {[%clk 0:03:00]}  e6 {[%clk 0:02:59]} 2. Nc3 {[%clk 0:02:59]}  d5 {[%clk 0:02:55]} 3. Bf4 {[%clk 0:02:58]}  f5 {[%clk 0:02:38]} 4. e3 {[%clk 0:02:57]}  a6 {[%clk 0:02:38]} 5. g4 {[%clk 0:02:54]}  fxg4 {[%clk 0:02:29]} 6. h3 {[%clk 0:02:50]}  g3 {[%clk 0:02:15]} 7. Bxg3 {[%clk 0:02:48]}  Nf6 {[%clk 0:02:12]} 8. Bd3 {[%clk 0:02:48]}  c5 {[%clk 0:02:09]} 9. Nf3 {[%clk 0:02:47]}  Nc6 {[%clk 0:02:08]} 10. Rg1 {[%clk 0:02:43]}  c4 {[%clk 0:02:05]} 11. Be2 {[%clk 0:02:39]}  Bb4 {[%clk 0:02:00]} 12. Nd2 {[%clk 0:02:33]}  O-O {[%clk 0:01:56]} 13. a3 {[%clk 0:02:24]}  Bxc3 {[%clk 0:01:41]} 14. bxc3 {[%clk 0:02:24]}  Qe7 {[%clk 0:01:35]} 15. e4 {[%clk 0:02:11]}  e5 {[%clk 0:01:11]} 16. dxe5 {[%clk 0:02:04]}  Nxe5 {[%clk 0:01:11]} 17. f4 {[%clk 0:02:04]}  Nc6 {[%clk 0:00:32]} 18. e5 {[%clk 0:02:04]}  Nd7 {[%clk 0:00:32]} 19. Nf3 {[%clk 0:02:00]}  Nc5 {[%clk 0:00:25]} 20. Bh4 {[%clk 0:01:59]}  Qf7 {[%clk 0:00:18]} 21. Bf6 {[%clk 0:01:58]}  g6 {[%clk 0:00:09]} 22. Ng5 {[%clk 0:01:57]}  Qd7 {[%clk 0:00:07]} 23. Bg4 {[%clk 0:01:55]} 1-0


[Site "https://www.chess.com"]

[Event "Titled Tuesday Blitz December 27 Early 2022"]
[White "Vakhlamov, Igor L."]
[Black "Bluebaum, Matthias"]
[WhiteFideId "24126748"]
[BlackFideId "24651516"]
[WhiteElo "2413"]
[BlackElo "2669"]
[Result "0-1"]
[Round "04"]
[TimeControl "180+2"]
[Date "2022.12.27"]
[WhiteClock "0:00:17"]
[BlackClock "0:01:14"]

1. e4 {[%clk 0:02:59]}  e6 {[%clk 0:03:00]} 2. d4 {[%clk 0:02:59]}  d5 {[%clk 0:03:00]} 3. Nc3 {[%clk 0:02:59]}  Nf6 {[%clk 0:03:00]} 4. Bd3 {[%clk 0:02:59]}  c5 {[%clk 0:03:00]} 5. Nf3 {[%clk 0:02:57]}  c4 {[%clk 0:03:00]} 6. Be2 {[%clk 0:02:57]}  Bb4 {[%clk 0:03:01]} 7. e5 {[%clk 0:02:46]}  Ne4 {[%clk 0:03:01]} 8. Bd2 {[%clk 0:02:47]}  Bxc3 {[%clk 0:03:01]} 9. Bxc3 {[%clk 0:02:47]}  Nxc3 {[%clk 0:03:02]} 10. bxc3 {[%clk 0:02:47]}  Qa5 {[%clk 0:03:01]} 11. Qd2 {[%clk 0:02:46]}  Nd7 {[%clk 0:03:01]} 12. O-O {[%clk 0:02:29]}  Nb6 {[%clk 0:03:00]} 13. Qg5 {[%clk 0:02:12]}  O-O {[%clk 0:02:59]} 14. a4 {[%clk 0:01:47]}  Nxa4 {[%clk 0:02:57]} 15. Ra3 {[%clk 0:01:46]}  b5 {[%clk 0:02:56]} 16. Rb1 {[%clk 0:01:34]}  Bd7 {[%clk 0:02:53]} 17. h4 {[%clk 0:01:29]}  Qd8 {[%clk 0:02:51]} 18. Qf4 {[%clk 0:01:24]}  Qe7 {[%clk 0:02:50]} 19. Qc1 {[%clk 0:01:04]}  a5 {[%clk 0:02:49]} 20. h5 {[%clk 0:01:02]}  h6 {[%clk 0:02:47]} 21. g4 {[%clk 0:00:55]}  b4 {[%clk 0:02:47]} 22. cxb4 {[%clk 0:00:56]}  axb4 {[%clk 0:02:47]} 23. Re3 {[%clk 0:00:56]}  Nc3 {[%clk 0:02:47]} 24. Ra1 {[%clk 0:00:56]}  Ra3 {[%clk 0:02:30]} 25. Rxa3 {[%clk 0:00:54]}  Nxe2+ {[%clk 0:02:30]} 26. Rxe2 {[%clk 0:00:53]}  bxa3 {[%clk 0:02:31]} 27. c3 {[%clk 0:00:33]}  Ra8 {[%clk 0:02:21]} 28. Ra2 {[%clk 0:00:32]}  Qf8 {[%clk 0:01:37]} 29. Kg2 {[%clk 0:00:31]}  Ra4 {[%clk 0:01:26]} 30. Nd2 {[%clk 0:00:28]}  f6 {[%clk 0:01:24]} 31. exf6 {[%clk 0:00:28]}  Qxf6 {[%clk 0:01:25]} 32. Nb1 {[%clk 0:00:29]}  e5 {[%clk 0:01:25]} 33. dxe5 {[%clk 0:00:25]}  Qxe5 {[%clk 0:01:25]} 34. Rxa3 {[%clk 0:00:26]}  Rxa3 {[%clk 0:01:24]} 35. Nxa3 {[%clk 0:00:24]}  Bxg4 {[%clk 0:01:24]} 36. Nb5 {[%clk 0:00:25]}  Qe4+ {[%clk 0:01:23]} 37. Kh2 {[%clk 0:00:21]}  Bxh5 {[%clk 0:01:19]} 38. Nd4 {[%clk 0:00:20]}  Bf3 {[%clk 0:01:13]} 39. Kg3 {[%clk 0:00:19]}  Qg4+ {[%clk 0:01:13]} 40. Kh2 {[%clk 0:00:17]}  Qg2# {[%clk 0:01:14]} 0-1


[Site "https://www.chess.com"]

[Event "Titled Tuesday Blitz December 27 Early 2022"]
[White "Warchol, Kamil"]
[Black "Andreev, Konstantin"]
[WhiteFideId "21858241"]
[BlackFideId "24239305"]
[WhiteElo "2173"]
[BlackElo "2195"]
[Result "0-1"]
[Round "04"]
[TimeControl "180+2"]
[Date "2022.12.27"]
[WhiteClock "0:00:11"]
[BlackClock "0:02:14"]

1. e4 {[%clk 0:02:45]}  c5 {[%clk 0:02:59]} 2. Nf3 {[%clk 0:02:41]}  e6 {[%clk 0:02:59]} 3. d4 {[%clk 0:02:41]}  cxd4 {[%clk 0:03:00]} 4. Nxd4 {[%clk 0:02:42]}  Nf6 {[%clk 0:03:01]} 5. Nc3 {[%clk 0:02:41]}  Nc6 {[%clk 0:02:59]} 6. Nxc6 {[%clk 0:02:40]}  bxc6 {[%clk 0:03:00]} 7. e5 {[%clk 0:02:39]}  Nd5 {[%clk 0:03:00]} 8. Ne4 {[%clk 0:02:33]}  Qc7 {[%clk 0:02:57]} 9. f4 {[%clk 0:02:29]}  Be7 {[%clk 0:02:54]} 10. c4 {[%clk 0:02:21]}  Nb6 {[%clk 0:02:50]} 11. Be3 {[%clk 0:02:03]}  O-O {[%clk 0:02:39]} 12. Be2 {[%clk 0:01:56]}  Ba6 {[%clk 0:02:38]} 13. Rc1 {[%clk 0:01:42]}  f5 {[%clk 0:02:36]} 14. Nc5 {[%clk 0:01:28]}  Bc8 {[%clk 0:02:29]} 15. O-O {[%clk 0:01:27]}  d6 {[%clk 0:02:29]} 16. exd6 {[%clk 0:01:26]}  Bxd6 {[%clk 0:02:30]} 17. Bf3 {[%clk 0:01:10]}  e5 {[%clk 0:02:28]} 18. fxe5 {[%clk 0:01:02]}  Bxe5 {[%clk 0:02:29]} 19. Nd3 {[%clk 0:01:02]}  Bxh2+ {[%clk 0:02:28]} 20. Kh1 {[%clk 0:01:01]}  Bg3 {[%clk 0:02:28]} 21. c5 {[%clk 0:00:54]}  Qe7 {[%clk 0:02:26]} 22. Qb3+ {[%clk 0:00:27]}  Be6 {[%clk 0:02:24]} 23. Bg5 {[%clk 0:00:27]}  Qxg5 {[%clk 0:02:17]} 24. Qxe6+ {[%clk 0:00:24]}  Kh8 {[%clk 0:02:17]} 25. Nf2 {[%clk 0:00:11]}  Bxf2 {[%clk 0:02:14]} 0-1


[Site "https://www.chess.com"]

[Event "Titled Tuesday Blitz December 27 Early 2022"]
[White "Weetik, Vjacheslav"]
[Black "Baches Garcia, Guillermo"]
[WhiteFideId "4153472"]
[BlackFideId "2209764"]
[WhiteElo "2423"]
[BlackElo "2327"]
[Result "1-0"]
[Round "04"]
[TimeControl "180+2"]
[Date "2022.12.27"]
[WhiteClock "0:00:07"]
[BlackClock "0:00:08"]

1. d4 {[%clk 0:02:52]}  Nf6 {[%clk 0:02:59]} 2. Nf3 {[%clk 0:02:46]}  e6 {[%clk 0:02:57]} 3. c4 {[%clk 0:02:45]}  d5 {[%clk 0:02:57]} 4. g3 {[%clk 0:02:45]}  Be7 {[%clk 0:02:56]} 5. Bg2 {[%clk 0:02:45]}  O-O {[%clk 0:02:57]} 6. O-O {[%clk 0:02:46]}  dxc4 {[%clk 0:02:57]} 7. Qc2 {[%clk 0:02:46]}  a6 {[%clk 0:02:57]} 8. a4 {[%clk 0:02:46]}  Bd7 {[%clk 0:02:57]} 9. Qxc4 {[%clk 0:02:46]}  Bc6 {[%clk 0:02:58]} 10. Bf4 {[%clk 0:02:46]}  Bd6 {[%clk 0:02:55]} 11. Nc3 {[%clk 0:02:46]}  Nbd7 {[%clk 0:02:49]} 12. a5 {[%clk 0:02:42]}  Bxf4 {[%clk 0:02:34]} 13. gxf4 {[%clk 0:02:42]}  Ne4 {[%clk 0:02:28]} 14. Qd3 {[%clk 0:02:32]}  Nxc3 {[%clk 0:02:23]} 15. bxc3 {[%clk 0:02:32]}  Bxf3 {[%clk 0:02:07]} 16. Bxf3 {[%clk 0:02:30]}  c6 {[%clk 0:02:06]} 17. Kh1 {[%clk 0:02:22]}  Qc7 {[%clk 0:02:03]} 18. e3 {[%clk 0:02:21]}  Rad8 {[%clk 0:02:03]} 19. Rg1 {[%clk 0:02:13]}  g6 {[%clk 0:02:00]} 20. Rg5 {[%clk 0:02:08]}  e5 {[%clk 0:01:46]} 21. fxe5 {[%clk 0:01:38]}  Nxe5 {[%clk 0:01:37]} 22. Qe4 {[%clk 0:01:37]}  Nxf3 {[%clk 0:01:31]} 23. Qxf3 {[%clk 0:01:38]}  Rd5 {[%clk 0:01:27]} 24. Qf6 {[%clk 0:01:07]}  Rfd8 {[%clk 0:01:12]} 25. c4 {[%clk 0:01:04]}  Rxg5 {[%clk 0:00:50]} 26. Qxg5 {[%clk 0:01:05]}  Re8 {[%clk 0:00:41]} 27. Rb1 {[%clk 0:00:58]}  Qd7 {[%clk 0:00:37]} 28. Kg2 {[%clk 0:00:48]}  Qe6 {[%clk 0:00:33]} 29. Rxb7 {[%clk 0:00:37]}  Qxc4 {[%clk 0:00:25]} 30. Qf6 {[%clk 0:00:35]}  Qd5+ {[%clk 0:00:16]} 31. f3 {[%clk 0:00:23]}  Rf8 {[%clk 0:00:15]} 32. Qe5 {[%clk 0:00:13]}  Qc4 {[%clk 0:00:14]} 33. Qg3 {[%clk 0:00:09]}  Qe2+ {[%clk 0:00:11]} 34. Qf2 {[%clk 0:00:10]}  Qc4 {[%clk 0:00:11]} 35. Rb6 {[%clk 0:00:10]}  Re8 {[%clk 0:00:08]} 36. e4 {[%clk 0:00:10]}  Qd3 {[%clk 0:00:07]} 37. Rb2 {[%clk 0:00:09]}  Qa3 {[%clk 0:00:06]} 38. Qd2 {[%clk 0:00:08]}  Qd6 {[%clk 0:00:05]} 39. Rb6 {[%clk 0:00:08]}  Qd7 {[%clk 0:00:05]} 40. Rxa6 {[%clk 0:00:07]}  Rd8 {[%clk 0:00:04]} 41. Rb6 {[%clk 0:00:06]}  Qxd4 {[%clk 0:00:04]} 42. Qxd4 {[%clk 0:00:06]}  Rxd4 {[%clk 0:00:04]} 43. Rxc6 {[%clk 0:00:07]}  Ra4 {[%clk 0:00:04]} 44. a6 {[%clk 0:00:07]}  Kf8 {[%clk 0:00:05]} 45. h4 {[%clk 0:00:07]}  Ke7 {[%clk 0:00:05]} 46. Kg3 {[%clk 0:00:06]}  h5 {[%clk 0:00:06]} 47. Rb6 {[%clk 0:00:07]}  Kd7 {[%clk 0:00:06]} 48. Rb7+ {[%clk 0:00:07]}  Ke6 {[%clk 0:00:06]} 49. a7 {[%clk 0:00:07]}  Kf6 {[%clk 0:00:07]} 50. Kf4 {[%clk 0:00:08]}  Ra1 {[%clk 0:00:07]} 51. Ke3 {[%clk 0:00:06]}  Ke6 {[%clk 0:00:07]} 52. Kd4 {[%clk 0:00:07]}  Kf6 {[%clk 0:00:07]} 53. Kc5 {[%clk 0:00:07]}  Ke6 {[%clk 0:00:07]} 54. Kb6 {[%clk 0:00:06]}  g5 {[%clk 0:00:08]} 55. hxg5 {[%clk 0:00:06]}  h4 {[%clk 0:00:09]} 56. Rb8 {[%clk 0:00:06]}  h3 {[%clk 0:00:08]} 57. a8=Q {[%clk 0:00:06]}  Rxa8 {[%clk 0:00:07]} 58. Rxa8 {[%clk 0:00:07]}  h2 {[%clk 0:00:07]} 59. Rh8 {[%clk 0:00:07]}  h1=Q {[%clk 0:00:08]} 60. Rxh1 {[%clk 0:00:07]} 1-0


[Site "https://www.chess.com"]

[Event "Titled Tuesday Blitz December 27 Early 2022"]
[White "White, John S."]
[Black "Koridze, Lile"]
[WhiteFideId "2502348"]
[BlackFideId "13612514"]
[WhiteElo "2235"]
[BlackElo "2191"]
[Result "0-1"]
[Round "04"]
[TimeControl "180+2"]
[Date "2022.12.27"]
[WhiteClock "0:00:41"]
[BlackClock "0:01:33"]

1. e4 {[%clk 0:02:58]}  c5 {[%clk 0:03:00]} 2. Nf3 {[%clk 0:02:57]}  d6 {[%clk 0:03:00]} 3. d4 {[%clk 0:02:56]}  cxd4 {[%clk 0:03:01]} 4. Nxd4 {[%clk 0:02:55]}  Nf6 {[%clk 0:03:01]} 5. Nc3 {[%clk 0:02:54]}  a6 {[%clk 0:03:01]} 6. Bg5 {[%clk 0:02:53]}  Nbd7 {[%clk 0:02:52]} 7. f4 {[%clk 0:02:47]}  h6 {[%clk 0:02:49]} 8. Bh4 {[%clk 0:02:43]}  e6 {[%clk 0:02:43]} 9. Bc4 {[%clk 0:02:38]}  Be7 {[%clk 0:02:43]} 10. Bxe6 {[%clk 0:02:18]}  fxe6 {[%clk 0:02:27]} 11. Nxe6 {[%clk 0:02:17]}  Qb6 {[%clk 0:02:27]} 12. Nxg7+ {[%clk 0:02:14]}  Kf7 {[%clk 0:02:27]} 13. Nf5 {[%clk 0:02:12]}  Qxb2 {[%clk 0:02:27]} 14. Nd5 {[%clk 0:01:54]}  Bf8 {[%clk 0:02:02]} 15. O-O {[%clk 0:01:41]}  Qa3 {[%clk 0:01:52]} 16. e5 {[%clk 0:01:32]}  Qc5+ {[%clk 0:01:50]} 17. Kh1 {[%clk 0:01:24]}  Qxd5 {[%clk 0:01:47]} 18. Bxf6 {[%clk 0:01:08]}  Qxd1 {[%clk 0:01:44]} 19. Raxd1 {[%clk 0:01:07]}  Nxf6 {[%clk 0:01:45]} 20. exf6 {[%clk 0:01:02]}  Bxf5 {[%clk 0:01:44]} 21. h3 {[%clk 0:00:57]}  Kxf6 {[%clk 0:01:43]} 22. c3 {[%clk 0:00:54]}  h5 {[%clk 0:01:41]} 23. Rd4 {[%clk 0:00:53]}  Rc8 {[%clk 0:01:40]} 24. c4 {[%clk 0:00:52]}  Rc5 {[%clk 0:01:38]} 25. Rfd1 {[%clk 0:00:49]}  Be7 {[%clk 0:01:38]} 26. a4 {[%clk 0:00:47]}  Rhc8 {[%clk 0:01:35]} 27. Kg1 {[%clk 0:00:41]}  Rxc4 {[%clk 0:01:35]} 28. Rd5 {[%clk 0:00:41]}  Rxa4 {[%clk 0:01:33]} 0-1


[Site "https://www.chess.com"]

[Event "Titled Tuesday Blitz December 27 Early 2022"]
[White "Xu, Yi"]
[Black "Csonka, Balazs"]
[WhiteFideId "8605564"]
[BlackFideId "742910"]
[WhiteElo "2527"]
[BlackElo "2496"]
[Result "1-0"]
[Round "04"]
[TimeControl "180+2"]
[Date "2022.12.27"]
[WhiteClock "0:00:22"]
[BlackClock "0:00:05"]

1. e4 {[%clk 0:03:00]}  c6 {[%clk 0:02:58]} 2. d4 {[%clk 0:03:00]}  d5 {[%clk 0:02:59]} 3. e5 {[%clk 0:03:01]}  Bf5 {[%clk 0:02:54]} 4. h4 {[%clk 0:03:01]}  h5 {[%clk 0:02:51]} 5. Bd3 {[%clk 0:03:01]}  Bxd3 {[%clk 0:02:51]} 6. Qxd3 {[%clk 0:03:01]}  Qa5+ {[%clk 0:02:51]} 7. Nd2 {[%clk 0:03:00]}  e6 {[%clk 0:02:50]} 8. Ne2 {[%clk 0:03:00]}  Ne7 {[%clk 0:02:36]} 9. c3 {[%clk 0:02:54]}  Qa6 {[%clk 0:02:24]} 10. Qxa6 {[%clk 0:02:53]}  Nxa6 {[%clk 0:02:25]} 11. b4 {[%clk 0:02:54]}  Nb8 {[%clk 0:02:09]} 12. Nb3 {[%clk 0:02:49]}  Nd7 {[%clk 0:02:06]} 13. Nf4 {[%clk 0:02:35]}  Nb6 {[%clk 0:02:02]} 14. Nc5 {[%clk 0:02:31]}  O-O-O {[%clk 0:01:57]} 15. Nh3 {[%clk 0:02:15]}  Nf5 {[%clk 0:01:04]} 16. Ng5 {[%clk 0:02:14]}  Bxc5 {[%clk 0:01:04]} 17. bxc5 {[%clk 0:02:05]}  Na4 {[%clk 0:01:05]} 18. Nxf7 {[%clk 0:02:06]}  Nxc3 {[%clk 0:01:05]} 19. Be3 {[%clk 0:01:56]}  b5 {[%clk 0:00:58]} 20. cxb6 {[%clk 0:01:52]}  axb6 {[%clk 0:00:58]} 21. Nxh8 {[%clk 0:01:53]}  Rxh8 {[%clk 0:00:58]} 22. Rc1 {[%clk 0:01:53]}  Nb5 {[%clk 0:00:40]} 23. Rxc6+ {[%clk 0:01:53]}  Kd7 {[%clk 0:00:39]} 24. Rxb6 {[%clk 0:01:53]}  Nbxd4 {[%clk 0:00:40]} 25. O-O {[%clk 0:01:27]}  Ne2+ {[%clk 0:00:26]} 26. Kh2 {[%clk 0:01:26]}  d4 {[%clk 0:00:25]} 27. Bg5 {[%clk 0:01:23]}  Ra8 {[%clk 0:00:23]} 28. Rb2 {[%clk 0:01:19]}  Nc3 {[%clk 0:00:18]} 29. Ra1 {[%clk 0:01:15]}  Ra4 {[%clk 0:00:16]} 30. Rd2 {[%clk 0:01:13]}  Kc6 {[%clk 0:00:16]} 31. Rc1 {[%clk 0:01:09]}  Kc5 {[%clk 0:00:15]} 32. f3 {[%clk 0:01:04]}  Kc4 {[%clk 0:00:15]} 33. g4 {[%clk 0:01:02]}  hxg4 {[%clk 0:00:16]} 34. fxg4 {[%clk 0:01:03]}  Ne3 {[%clk 0:00:14]} 35. Bxe3 {[%clk 0:01:01]}  dxe3 {[%clk 0:00:15]} 36. Rdc2 {[%clk 0:01:02]}  Ra3 {[%clk 0:00:15]} 37. Kg2 {[%clk 0:00:34]}  Kd3 {[%clk 0:00:14]} 38. Rb2 {[%clk 0:00:34]}  Ra5 {[%clk 0:00:04]} 39. h5 {[%clk 0:00:30]}  Rxe5 {[%clk 0:00:04]} 40. Rb3 {[%clk 0:00:28]}  Rc5 {[%clk 0:00:03]} 41. Kf3 {[%clk 0:00:24]}  Kd2 {[%clk 0:00:03]} 42. Rbxc3 {[%clk 0:00:22]}  Rxc3 {[%clk 0:00:04]} 43. Rxc3 {[%clk 0:00:22]}  Kxc3 {[%clk 0:00:05]} 44. Kxe3 {[%clk 0:00:22]} 1-0


[Site "https://www.chess.com"]

[Event "Titled Tuesday Blitz December 27 Early 2022"]
[White "Yaran, Siar"]
[Black "Vovk, Orest"]
[WhiteFideId "6323006"]
[BlackFideId "14113490"]
[WhiteElo "2288"]
[BlackElo "2315"]
[Result "1-0"]
[Round "04"]
[TimeControl "180+2"]
[Date "2022.12.27"]
[WhiteClock "0:00:58"]
[BlackClock "0:00:08"]

1. d4 {[%clk 0:03:00]}  e5 {[%clk 0:01:53]} 2. dxe5 {[%clk 0:03:00]}  Nc6 {[%clk 0:01:51]} 3. Nf3 {[%clk 0:02:56]}  Qe7 {[%clk 0:01:51]} 4. Nc3 {[%clk 0:02:44]}  Nxe5 {[%clk 0:01:51]} 5. e4 {[%clk 0:02:31]}  Nf6 {[%clk 0:01:50]} 6. Bf4 {[%clk 0:02:28]}  d6 {[%clk 0:01:48]} 7. Qd2 {[%clk 0:02:27]}  c6 {[%clk 0:01:48]} 8. O-O-O {[%clk 0:02:26]}  Bg4 {[%clk 0:01:39]} 9. Be2 {[%clk 0:02:26]}  g6 {[%clk 0:00:57]} 10. Kb1 {[%clk 0:02:22]}  Bg7 {[%clk 0:00:56]} 11. Qxd6 {[%clk 0:02:20]}  Nxf3 {[%clk 0:00:53]} 12. gxf3 {[%clk 0:02:18]}  Qxd6 {[%clk 0:00:53]} 13. Rxd6 {[%clk 0:02:12]}  Be6 {[%clk 0:00:54]} 14. Rhd1 {[%clk 0:02:07]}  O-O {[%clk 0:00:53]} 15. Be3 {[%clk 0:01:59]}  Rfe8 {[%clk 0:00:37]} 16. a4 {[%clk 0:01:41]}  Bh3 {[%clk 0:00:34]} 17. a5 {[%clk 0:01:39]}  a6 {[%clk 0:00:33]} 18. Na4 {[%clk 0:01:36]}  Nh5 {[%clk 0:00:26]} 19. Nb6 {[%clk 0:01:31]}  Rab8 {[%clk 0:00:26]} 20. Nd7 {[%clk 0:01:27]}  Bxd7 {[%clk 0:00:22]} 21. Rxd7 {[%clk 0:01:27]}  Be5 {[%clk 0:00:23]} 22. Bc4 {[%clk 0:01:19]}  Rf8 {[%clk 0:00:21]} 23. Re7 {[%clk 0:01:13]}  Bxh2 {[%clk 0:00:18]} 24. Bh6 {[%clk 0:01:08]}  Bf4 {[%clk 0:00:10]} 25. Bxf8 {[%clk 0:01:05]}  Rxf8 {[%clk 0:00:11]} 26. Rxf7 {[%clk 0:01:00]}  Rxf7 {[%clk 0:00:10]} 27. Rd7 {[%clk 0:01:00]}  Kg7 {[%clk 0:00:08]} 28. Rxf7+ {[%clk 0:00:59]}  Kh6 {[%clk 0:00:09]} 29. Rxb7 {[%clk 0:01:00]}  Nf6 {[%clk 0:00:08]} 30. Bxa6 {[%clk 0:00:59]}  Kg5 {[%clk 0:00:08]} 31. Bf1 {[%clk 0:00:58]} 1-0


[Site "https://www.chess.com"]